Workbook

Sheet Feuil1
A1: NBRS Consultation | B1: Type (Composant / Sous Ensemble / Opération) | C1: Pôle d'Achats | D1: Mini | E1: Articles | F1: Quantité / Produit finis | G1: Référence Plan | H1: Transmission des fichiers | I1: Référence Devis // Prototypes | J1: Référence Devis // Supply Chain | K1: Etat | L1: Nom du fournisseur | M1: Le FNR est : (pays) - ISO 9001 - EN 9100 | N1: Délais (en j) | O1: Prix Devis (1) / Estimation (0) | P1: Prix Unitaires Prototypes | Q1: Frais d'outillage | R1: Cout Unitaire /100 produit finis | S1: CU/500 | T1: CU/1000 | U1: Cout Totale/100 produits finis | V1: CT/500 | W1: CT/1000 | X1: Quantité 100 | Y1: Quantité 1000 | Z1: transport | AA1: Coût du transport par produit finis et par pôle | AB1: Part dans le coût de revient total | AC1: Cout toatal produits finis /100 | AD1: Cout toatal produits finis /500 | AE1: Cout toatal produits finis /1000 | AF1: Part dans le coût total des composants // 100 | AG1: Part dans le coût total des composants // 1000
A2: 1 | B2: composant | C2: Plastique | E2: IFA24 | F2: 1 | G2: PLAST-00011 L1 | H2: OUI | I2: 0021732/0 | J2: 002175/0 | K2: Terminer | L2: N | M2: ISO 9001 (FR) | N2: 21 | P2: 367 | R2: 98 | S2: 61 | T2: 56 | U2: =R2*F2 -> 98 | V2: =S2*F2 -> 61 | W2: =T2*F2 -> 56 | X2: 100 | Y2: 1000 | Z2: 0 | AA2: =Z2/X2 -> 0 | AB2: =AA2/$AC$100 -> 0 | AC2: =U2+(Z2/X2) -> 98 | AD2: =V2+(Z2/500) -> 61 | AE2: =SUM(W2)+(SUM(Z2)/_xlfn.SINGLE(Y2)) -> 56 | AF2: =AC2/$AC$93 -> 0.0758133105 | AG2: =AD2/$AE$93 -> 0.07114860085
A3: 1 | B3: composant | C3: Plastique | E3: IFA24 | F3: 1 | G3: PLAST-00011 L1 | H3: OUI | I3: - | J3: 10951 / 1.0.0 | K3: Terminer | L3: B | M3: EN 9100 (FR) | O3: 1 | P3: 0 | Q3: 500 | R3: 75 | S3: 67 | T3: 65 | U3: =R3*F3 -> 75 | V3: =S3*F3 -> 67 | W3: =T3*F3 -> 65 | X3: 100 | Y3: 1000 | Z3: 0 | AA3: 0 | AB3: =AA3/$AC$100 -> 0 | AC3: 75 | AD3: 67 | AE3: =SUM(W3)+(SUM(Z3)/_xlfn.SINGLE(Y3)) -> 65 | AF3: =AC3/$AC$93 -> 0.05802039069 | AG3: =AD3/$AE$93 -> 0.07814682389
A4: =SUM(A2:A3) -> 2 | B4: composant | C4: Plastique | D4: Mini | E4: IFA24 | F4: 1 | R4: =MIN(R2:R3) -> 75 | S4: 61 | T4: 56 | U4: 75 | V4: 61 | W4: 56 | AC4: =MIN(AC2:AC3) -> 75 | AD4: =MIN(AD2:AD3) -> 61 | AE4: =MIN(AE2:AE3) -> 56 | AF4: =MIN(AF2:AF3) -> 0.05802039069 | AG4: =MIN(AG2:AG3) -> 0.07114860085
A5: 1 | B5: composant | C5: Plastique | E5: HFA24 | F5: 1 | G5: PLAST-00017 L1 | H5: OUI | I5: 0021732/0 | J5: 002175/0 | K5: Terminer | L5: N | M5: ISO 9001 (FR) | N5: 21 | P5: 353 | R5: 100 | S5: 63 | T5: 58 | U5: =R5*F5 -> 100 | V5: =S5*F5 -> 63 | W5: =T5*F5 -> 58 | X5: 100 | Y5: 1000 | Z5: 0 | AA5: 0 | AB5: =AA5/$AC$100 -> 0 | AC5: 100 | AD5: 63 | AE5: =SUM(W5)+(SUM(Z5)/_xlfn.SINGLE(Y5)) -> 58 | AF5: =AC5/$AC$93 -> 0.07736052091 | AG5: =AD5/$AE$93 -> 0.07348134186
A6: 1 | B6: composant | C6: Plastique | E6: HFA24 | F6: 1 | G6: PLAST-00017 L1 | H6: OUI | I6: - | J6: 10951 / 1.0.0 | K6: Terminer | L6: B | M6: EN 9100 (FR) | O6: 1 | P6: 0 | Q6: 500 | R6: 48 | S6: 40 | T6: 35 | U6: =R6*F6 -> 48 | V6: =S6*F6 -> 40 | W6: =T6*F6 -> 35 | X6: 100 | Y6: 1000 | Z6: 0 | AA6: 0 | AB6: =AA6/$AC$100 -> 0 | AC6: 48 | AD6: 40 | AE6: =SUM(W6)+(SUM(Z6)/_xlfn.SINGLE(Y6)) -> 35 | AF6: =AC6/$AC$93 -> 0.03713305004 | AG6: =AD6/$AE$93 -> 0.04665482023
A7: =SUM(A5:A6) -> 2 | B7: composant | C7: Plastique | D7: Mini | E7: HFA24 | F7: 1 | R7: =MIN(R5:R6) -> 48 | S7: 40 | T7: 35 | U7: 48 | V7: 40 | W7: 35 | AC7: =MIN(AC5:AC6) -> 48 | AD7: =MIN(AD5:AD6) -> 40 | AE7: =MIN(AE5:AE6) -> 35 | AF7: =MIN(AF5:AF6) -> 0.03713305004 | AG7: =MIN(AG5:AG6) -> 0.04665482023
A8: 1 | B8: composant | C8: Plastique | E8: D24L1 | F8: 2 | G8: PLAST-00014 | H8: OUI | I8: 0021732/0 | J8: 002175/0 | K8: Terminer | L8: N | M8: ISO 9001 (FR) | N8: 21 | O8: 1 | P8: 468 | R8: =222/2 -> 111 | S8: =168/2 -> 84 | T8: =140.75/2 -> 70.375 | U8: =R8*F8 -> 222 | V8: =S8*F8 -> 168 | W8: =T8*F8 -> 140.75 | X8: 100 | Y8: 1000 | Z8: 0 | AA8: 0 | AB8: =AA8/$AC$100 -> 0 | AC8: 222 | AD8: 168 | AE8: 140.75 | AF8: =AC8/$AC$93 -> 0.1717403564 | AG8: =AD8/$AE$93 -> 0.195950245
A9: 1 | B9: composant | C9: Plastique | E9: D24L1 | F9: 2 | G9: PLAST-00014 | H9: OUI | I9: - | J9: 10951 / 1.0.0 | K9: Terminer | L9: B | M9: EN 9100 (FR) | P9: 0 | R9: =205+(800/100) -> 213 | S9: =195+(800/500) -> 196.6 | T9: =190+(800/1000) -> 190.8 | U9: =R9*F9 -> 426 | V9: =S9*F9 -> 393.2 | W9: =T9*F9 -> 381.6 | X9: 100 | Y9: 1000 | Z9: 0 | AA9: 0 | AB9: =AA9/$AC$100 -> 0 | AC9: 426 | AD9: 393.2 | AE9: 381.6 | AF9: =AC9/$AC$93 -> 0.3295558191 | AG9: =AD9/$AE$93 -> 0.4586168829
A10: 1 | B10: composant | C10: Plastique | E10: D24L1 | F10: 2 | G10: PLAST-00014 | H10: OUI | I10: - | J10: FK 20210123 | K10: En attente retour FRN | L10: R | M10: ISO 9001 (FR) | N10: 45 | O10: 1 | P10: 1000 | R10: 330 | S10: 0 | T10: 0 | U10: =R10*F10 -> 660 | V10: =S10*F10 -> 0 | W10: =T10*F10 -> 0 | X10: 100 | Y10: 1000 | Z10: 50 | AA10: 0.5 | AB10: =AA10/$AC$100 -> 0.0005831852529 | AC10: 660.5 | AD10: 0.1 | AE10: =SUM(W10)+(SUM(Z10)/_xlfn.SINGLE(Y10)) -> 0.05 | AF10: =AC10/$AC$93 -> 0.5109662406 | AG10: =AD10/$AE$93 -> 0.0001166370506
A11: =SUM(A8:A10) -> 3 | B11: composant | C11: Plastique | D11: Mini | E11: D24L1 | F11: 2 | R11: =MIN(R8:R10) -> 111 | S11: 0 | T11: 0 | U11: 222 | V11: 0 | W11: =U11 -> 222 | AC11: =MIN(AC8:AC10) -> 222 | AD11: =MIN(AD8:AD10) -> 0.1 | AE11: =MIN(AE8:AE10) -> 0.05 | AF11: =MIN(AF8:AF10) -> 0.1717403564 | AG11: =MIN(AG8:AG10) -> 0.0001166370506
A12: 1 | B12: composant | C12: Plastique | E12: GF | F12: 16 | G12: PLAST-00022 | H12: OUI | I12: 10119 | J12: 10119-2 | K12: Terminer | L12: T | M12: ISO 9001 (FR) | N12: 11 | O12: 1 | P12: 0 | Q12: 9500 | R12: 6.8 | S12: 2.95 | T12: 2.1 | U12: =R12*F12 -> 108.8 | V12: =S12*F12 -> 47.2 | W12: =T12*F12 -> 33.6 | X12: 100 | Y12: 1000 | Z12: 0 | AA12: 0 | AB12: =AA12/$AC$100 -> 0 | AC12: =U12+(Z12/X12) -> 108.8 | AD12: 47.2 | AE12: 33.6 | AF12: =AC12/$AC$93 -> 0.08416824676 | AG12: =AD12/$AE$93 -> 0.05505268787
A13: =SUM(A12:A12) -> 1 | B13: composant | C13: Plastique | D13: Mini | E13: GF | F13: 16 | R13: =MIN(R11:R12) -> 6.8 | S13: 0 | T13: 0 | U13: 108.8 | V13: 0 | W13: 33.6 | AC13: =MIN(AC12:AC12) -> 108.8 | AD13: =MIN(AD12:AD12) -> 47.2 | AE13: =MIN(AE12:AE12) -> 33.6 | AF13: =MIN(AF12:AF12) -> 0.08416824676 | AG13: =MIN(AG12:AG12) -> 0.05505268787
B14: composant | C14: Plastique | D14: Mini | E14: FA | F14: 1
A15: 1 | B15: composant | C15: Usinage | E15: GB24 | F15: 2 | G15: MET-00007 L1 | H15: OUI | I15: 0021732/0 | J15: 002175/0 | K15: Terminer | L15: N | M15: ISO 9001 (FR) | N15: 21 | O15: 1 | P15: 50.25 | R15: =16.5/2 -> 8.25 | S15: =8/2 -> 4 | T15: =5.5/2 -> 2.75 | U15: =R15*F15 -> 16.5 | V15: =S15*F15 -> 8 | W15: =T15*F15 -> 5.5 | X15: 100 | Y15: 1000 | Z15: 0 | AA15: =Z15/X15 -> 0 | AB15: =AA15/$AC$100 -> 0 | AC15: =U15+(Z15/X15) -> 16.5 | AD15: 8 | AE15: 5.5 | AF15: =AC15/$AC$93 -> 0.01276448595 | AG15: =AD15/$AE$93 -> 0.009330964046
A16: 1 | B16: composant | C16: Usinage | E16: GB24 | F16: 2 | G16: MET-00007 L1 | H16: OUI | I16: - | J16: 10951 / 1.0.0 | K16: Terminer | L16: B | M16: EN 9100 (FR) | P16: 0 | Q16: 300 | R16: =8+(300/100) -> 11 | S16: =3.6+(300/500) -> 4.2 | T16: =3+(300/1000) -> 3.3 | U16: =R16*F16 -> 22 | V16: =S16*F16 -> 8.4 | W16: =T16*F16 -> 6.6 | X16: 100 | Y16: 1000 | Z16: 0 | AA16: 0 | AB16: =AA16/$AC$100 -> 0 | AC16: 22 | AD16: 8.4 | AE16: 6.6 | AF16: =AC16/$AC$93 -> 0.0170193146 | AG16: =AD16/$AE$93 -> 0.009797512248
A17: 1 | B17: composant | C17: Usinage | E17: GB24 | F17: 2 | G17: MET-00007 L1 | H17: OUI | I17: - | J17: FK 20210123 | K17: En attente retour FRN | L17: R | M17: ISO 9001 (FR) | N17: 45 | O17: 1 | R17: 18 | S17: 17 | T17: 16 | U17: =R17*F17 -> 36 | V17: =S17*F17 -> 34 | W17: =T17*F17 -> 32 | X17: 100 | Y17: 1000 | Z17: 50 | AA17: 0.5 | AB17: =AA17/$AC$100 -> 0.0005831852529 | AC17: 36.5 | AD17: 34.1 | AE17: =SUM(W17)+(SUM(Z17)/_xlfn.SINGLE(Y17)) -> 32.05 | AF17: =AC17/$AC$93 -> 0.02823659013 | AG17: =AD17/$AE$93 -> 0.03977323425
A18: =SUM(A15:A17) -> 3 | B18: composant | C18: Usinage | D18: Mini | E18: GB24 | F18: 2 | R18: =MIN(R15:R17) -> 8.25 | S18: 4 | T18: 2.75 | U18: 16.5 | V18: 8 | W18: 5.5 | AC18: =MIN(AC15:AC17) -> 16.5 | AD18: =MIN(AD15:AD17) -> 8 | AE18: =MIN(AE15:AE17) -> 5.5 | AF18: =MIN(AF15:AF17) -> 0.01276448595 | AG18: =MIN(AG15:AG17) -> 0.009330964046
A19: 1 | B19: composant | C19: Tolerie | E19: TB | F19: 1 | G19: MET-00015 L1 | H19: OUI | I19: 0021732/0 | J19: 002175/0 | K19: Terminer | L19: N | M19: ISO 9001 (FR) | N19: 21 | O19: 1 | P19: 175 | R19: 130.5 | S19: 115 | T19: 106 | U19: =R19*F19 -> 130.5 | V19: =S19*F19 -> 115 | W19: =T19*F19 -> 106 | X19: 100 | Y19: 1000 | Z19: 0 | AA19: 0 | AB19: =AA19/$AC$100 -> 0 | AC19: =U19+(Z19/X19) -> 130.5 | AD19: 115 | AE19: =SUM(W19)+(SUM(Z19)/_xlfn.SINGLE(Y19)) -> 106 | AF19: =AC19/$AC$93 -> 0.1009554798 | AG19: =AD19/$AE$93 -> 0.1341326082
A20: 1 | B20: composant | C20: Tolerie | E20: TB | F20: 1 | G20: MET-00015 L1 | H20: OUI | I20: - | J20: 4643 | K20: Terminer | L20: M | M20: EN 9100 (FR) | O20: 1 | R20: 143.45 | S20: 123.67 | T20: 109.32 | U20: =R20*F20 -> 143.45 | V20: =S20*F20 -> 123.67 | W20: =T20*F20 -> 109.32 | X20: 100 | Y20: 1000 | Z20: 0 | AA20: 0 | AB20: =AA20/$AC$100 -> 0 | AC20: =U20+(Z20/X20) -> 143.45 | AD20: 123.67 | AE20: =SUM(W20)+(SUM(Z20)/_xlfn.SINGLE(Y20)) -> 109.32 | AF20: =AC20/$AC$93 -> 0.1109736673 | AG20: =AD20/$AE$93 -> 0.1442450404
A21: 1 | B21: composant | C21: Tolerie | E21: TB | F21: 1 | G21: MET-00015 L1 | H21: OUI | I21: - | J21: 43919-01 | K21: Terminer | L21: L | M21: EN 9100 (FR) | O21: 1 | Q21: 750 | R21: 129.54 | S21: 123.52 | T21: 117.86 | U21: =R21*F21 -> 129.54 | V21: =S21*F21 -> 123.52 | W21: =T21*F21 -> 117.86 | X21: 100 | Y21: 1000 | Z21: 50 | AA21: 0.5 | AB21: =AA21/$AC$100 -> 0.0005831852529 | AC21: =U21+(Z21/X21) -> 130.04 | AD21: 123.62 | AE21: =SUM(W21)+(SUM(Z21)/_xlfn.SINGLE(Y21)) -> 117.91 | AF21: =AC21/$AC$93 -> 0.1005996214 | AG21: =AD21/$AE$93 -> 0.1441867219
A22: 1 | B22: composant | C22: Tolerie | E22: TB | F22: 1 | G22: MET-00015 L1 | H22: OUI | I22: - | J22: - | K22: Terminer | L22: V | O22: 1 | R22: 103.9 | S22: 88.9 | T22: 80.9 | U22: =R22*F22 -> 103.9 | V22: =S22*F22 -> 88.9 | W22: =T22*F22 -> 80.9
K23: En attente retour FRN | L23: R
A24: =SUM(A19:A21) -> 3 | B24: composant | C24: Tolerie | D24: Mini | E24: TB | F24: 1 | R24: =MIN(R19:R22) -> 103.9 | S24: =MIN(S19:S22) -> 88.9 | T24: 80.9 | U24: 103.9 | V24: 88.9 | W24: 80.9 | AC24: =MIN(AC19:AC19) -> 130.5 | AD24: =MIN(AD19:AD19) -> 115 | AE24: =MIN(AE19:AE19) -> 106 | AF24: =MIN(AF19:AF19) -> 0.1009554798 | AG24: =MIN(AG19:AG19) -> 0.1341326082
A25: 1 | B25: composant | C25: Tolerie | E25: BE | F25: 1 | G25: MET-00024 | H25: OUI | I25: - | J25: En attente | K25: En attente retour FRN | L25: X | M25: ISO 9001 (FR)
A26: 1 | B26: composant | C26: Tolerie | E26: BE | F26: 1 | G26: MET-00024 | H26: NON | I26: - | J26: - | K26: A Faire | L26: Y | M26: ISO 9001 (FR)
A27: =SUM(A25:A25) -> 1 | B27: composant | C27: Tolerie | D27: Mini | E27: BE | F27: 0 | R27: =MIN(R25:R26) -> 0 | S27: =MIN(S25:S26) -> 0 | T27: 0 | U27: 0 | V27: 0 | W27: 0 | AC27: =MIN(AC25:AC26) -> 0 | AD27: =MIN(AD25:AD26) -> 0 | AE27: 0 | AF27: 0 | AG27: =MIN(AG25:AG26) -> 0
A28: 1 | B28: composant | C28: Tolerie | E28: TC24 | F28: 1 | G28: MET-00017 L1 | H28: OUI | I28: 0021732/0 | J28: 002175/0 | K28: Terminer | L28: N | M28: ISO 9001 (FR) | N28: 21 | O28: 1 | P28: 157 | R28: 144.5 | S28: 126 | T28: 115 | U28: =R28*F28 -> 144.5 | V28: =S28*F28 -> 126 | W28: =T28*F28 -> 115 | X28: 100 | Y28: 1000 | Z28: 0 | AA28: 0 | AB28: =AA28/$AC$100 -> 0 | AC28: 144.5 | AD28: 126 | AE28: =SUM(W28)+(SUM(Z28)/_xlfn.SINGLE(Y28)) -> 115 | AF28: =AC28/$AC$93 -> 0.1117859527 | AG28: =AD28/$AE$93 -> 0.1469626837
A29: 1 | B29: composant | C29: Tolerie | E29: TC24 | F29: 1 | G29: MET-00017 L1 | H29: OUI | I29: - | J29: FK 20210123 | K29: Terminer | L29: R | M29: EN 9100 (FR) | N29: 35 | O29: 1 | R29: 39 | S29: 35 | T29: 34.5 | U29: =R29*F29 -> 39 | V29: =S29*F29 -> 35 | W29: =T29*F29 -> 34.5 | X29: 100 | Y29: 1000 | Z29: 50 | AA29: 0.5 | AB29: =AA29/$AC$100 -> 0.0005831852529 | AC29: 39.5 | AD29: 35.1 | AE29: =SUM(W29)+(SUM(Z29)/_xlfn.SINGLE(Y29)) -> 34.55 | AF29: =AC29/$AC$93 -> 0.03055740576 | AG29: =AD29/$AE$93 -> 0.04093960475
A30: 1 | B30: composant | C30: Tolerie | E30: TC24 | F30: 1 | G30: MET-00017 L1 | H30: OUI | I30: - | J30: En attente | K30: En attente retour FRN | L30: M | M30: EN 9100 (FR)
A31: 1 | B31: composant | C31: Tolerie | E31: TC24 | F31: 1 | G31: MET-00017 L1 | H31: OUI | I31: - | J31: 43919-01 | K31: Terminer | L31: L | M31: EN 9100 (FR) | O31: 1 | Q31: 350 | R31: 70.55 | S31: 67.26 | T31: 64.17 | U31: =R31*F31 -> 70.55 | V31: =S31*F31 -> 67.26 | W31: =T31*F31 -> 64.17 | X31: 100 | Y31: 1000 | Z31: 50 | AA31: 0.5 | AB31: 0.001134325717 | AC31: =U31+(Z31/X31) -> 71.05 | AD31: =V31+(Z31/500) -> 67.36 | AE31: =SUM(W31)+(SUM(Z31)/_xlfn.SINGLE(Y31)) -> 64.22 | AF31: =AC31/$AC$93 -> 0.05496465011 | AG31: =AD31/$AE$93 -> 0.07856671727
A32: 1 | B32: composant | C32: Tolerie | E32: TC24 | F32: 1 | G32: MET-00017 L1 | H32: OUI | I32: - | K32: Terminer | L32: V | M32: EN 9100 (FR) | O32: 1 | R32: 56.07 | S32: 46.07 | T32: 41.07 | U32: =R32*F32 -> 56.07 | V32: =S32*F32 -> 46.07 | W32: =T32*F32 -> 41.07 | X32: 100 | Y32: 1000 | Z32: 50 | AA32: 0.5 | AB32: 0.001134325717 | AC32: 56.57 | AD32: 46.17 | AE32: 41.12 | AF32: =AC32/$AC$93 -> 0.04376284668 | AG32: =AD32/$AE$93 -> 0.05385132625
A33: =SUM(A28:A31) -> 4 | B33: composant | C33: Tolerie | D33: Mini | E33: TC24 | F33: 1 | R33: =MIN(R28:R32) -> 39 | S33: =MIN(S28:S32) -> 35 | T33: 34.5 | U33: 39 | V33: 35 | W33: 34.5 | X33: =MIN(X28:X31) -> 100 | Y33: =MIN(Y28:Y31) -> 1000 | AC33: =MIN(AC28:AC31) -> 39.5 | AD33: =MIN(AD28:AD31) -> 35.1 | AE33: =MIN(AE28:AE31) -> 34.55 | AF33: =MIN(AF28:AF31) -> 0.03055740576 | AG33: =MIN(AG28:AG31) -> 0.04093960475
A34: 1 | B34: composant | C34: Tolerie | E34: EF BMS24 | F34: 4 | G34: MET-00019 L1 | H34: OUI | I34: 0021732/0 | J34: 002175/0 | K34: Terminer | L34: N | M34: ISO 9001 (FR) | N34: 21 | O34: 1 | P34: 40.5 | R34: =12/4 -> 3 | S34: =8/4 -> 2 | T34: =6.5/4 -> 1.625 | U34: =R34*F34 -> 12 | V34: =S34*F34 -> 8 | W34: =T34*F34 -> 6.5 | X34: 100 | Y34: 1000 | Z34: 0 | AA34: 0 | AB34: =AA34/$AC$100 -> 0 | AC34: 12 | AD34: 8 | AE34: =SUM(W34)+(SUM(Z34)/_xlfn.SINGLE(Y34)) -> 6.5 | AF34: =AC34/$AC$93 -> 0.00928326251 | AG34: =AD34/$AE$93 -> 0.009330964046
A35: =SUM(A34:A34) -> 1 | B35: composant | C35: Tolerie | D35: Mini | E35: EF BMS24 | F35: 1 | R35: =MIN(R34:R34) -> 3 | S35: 2 | T35: 1.625 | U35: 12 | V35: 8 | W35: 6.5 | AC35: =MIN(AC34:AC34) -> 12 | AD35: =MIN(AD34:AD34) -> 8 | AE35: =MIN(AE34:AE34) -> 6.5 | AF35: =MIN(AF34:AF34) -> 0.00928326251 | AG35: =MIN(AG34:AG34) -> 0.009330964046
A36: 1 | B36: composant | C36: Tolerie | E36: BP24L1 | F36: 4 | G36: MET-00020 L1 | H36: OUI | I36: 0021732/0 | J36: 002175/0 | K36: Terminer | L36: N | M36: ISO 9001 (FR) | N36: 21 | O36: 1 | P36: 49 | R36: =13/4 -> 3.25 | S36: =9.5/4 -> 2.375 | T36: =7.5/4 -> 1.875 | U36: =R36*F36 -> 13 | V36: =S36*F36 -> 9.5 | W36: =T36*F36 -> 7.5 | X36: 100 | Y36: 1000 | Z36: 0 | AA36: =Z36/X36 -> 0 | AB36: =AA36/$AC$100 -> 0 | AC36: =U36+(Z36/X36) -> 13 | AD36: 9.5 | AE36: =SUM(W36)+(SUM(Z36)/_xlfn.SINGLE(Y36)) -> 7.5 | AF36: =AC36/$AC$93 -> 0.01005686772 | AG36: =AD36/$AE$93 -> 0.0110805198
A37: =SUM(A36:A36) -> 1 | B37: composant | C37: Tolerie | D37: Mini | E37: BP24L1 | F37: 4 | R37: =MIN(R36:R36) -> 3.25 | S37: 2.375 | T37: 1.875 | U37: 13 | V37: 9.5 | W37: 7.5 | AC37: =MIN(AC36:AC36) -> 13 | AD37: =MIN(AD36:AD36) -> 9.5 | AE37: =MIN(AE36:AE36) -> 7.5 | AF37: =MIN(AF36:AF36) -> 0.01005686772 | AG37: =MIN(AG36:AG36) -> 0.0110805198
A38: 1 | B38: composant | C38: Tolerie | E38: LIL1 | F38: 49 | G38: MET-00006 | H38: OUI | I38: 0021732/0 | J38: En attente | K38: En attente retour FRN | L38: N | M38: ISO 9001 (FR) | N38: 21 | O38: 0 | P38: 4.75 | R38: 3 | U38: =R38*F38 -> 147
A39: 1 | B39: composant | C39: Tolerie | E39: LIL1 | F39: 49 | G39: MET-00006 | H39: OUI | I39: - | J39: D193191 | K39: Terminer | L39: K | M39: ISO 9001 (FR) | O39: 1 | R39: 1.5 | S39: 0.95 | T39: 0.9 | U39: =R39*F39 -> 73.5 | V39: =S39*F39 -> 46.55 | W39: =T39*F39 -> 44.1 | X39: 100 | Y39: 1000 | Z39: 20 | AA39: =Z39/X39 -> 0.2 | AB39: =AA39/$AC$100 -> 0.0002332741012 | AC39: =U39+(Z39/X39) -> 73.7 | AD39: =V39+(Z39/500) -> 46.59 | AE39: =SUM(W39)+(SUM(Z39)/_xlfn.SINGLE(Y39)) -> 44.12 | AF39: =AC39/$AC$93 -> 0.05701470391 | AG39: =AD39/$AE$93 -> 0.05434120186
A40: 1 | B40: composant | C40: Tolerie | E40: LIL1 | F40: 49 | G40: MET-00006 | H40: OUI | I40: - | J40: En attente | K40: En attente retour FRN | L40: J | M40: EN 9100 (FR)
A41: =SUM(A38:A40) -> 3 | B41: composant | C41: Tolerie | D41: Mini | E41: LIL1 | F41: 49 | R41: =MIN(R38:R38) -> 3 | S41: 0 | T41: 0 | U41: =MIN(U38:U40) -> 73.5 | V41: 0 | W41: =U41 -> 73.5
A42: 1 | B42: composant | C42: Tolerie | E42: LP | F42: 14 | G42: MET-00005 | H42: OUI | I42: 0021732/0 | J42: AE1 | K42: En attente retour FRN | L42: N | M42: ISO 9001 (FR) | N42: 21 | O42: 0 | P42: 9.5 | R42: 7 | U42: =R42*F42 -> 98
A43: 1 | B43: composant | C43: Tolerie | E43: LP | F43: 49 | G43: MET-00005 | H43: OUI | I43: - | J43: AE2 | K43: Terminer | L43: K | M43: ISO 9001 (FR) | O43: 1 | R43: 1.5 | S43: 0.95 | T43: 0.9 | U43: =R43*F43 -> 73.5 | V43: =S43*F43 -> 46.55 | W43: =T43*F43 -> 44.1 | X43: 100 | Y43: 1000 | Z43: 20 | AA43: =Z43/X43 -> 0.2 | AB43: =AA43/$AC$100 -> 0.0002332741012 | AC43: =U43+(Z43/X43) -> 73.7 | AD43: =V43+(Z43/500) -> 46.59 | AE43: =SUM(W43)+(SUM(Z43)/_xlfn.SINGLE(Y43)) -> 44.12 | AF43: =AC43/$AC$93 -> 0.05701470391 | AG43: =AD43/$AE$93 -> 0.05434120186
A44: 1 | B44: composant | C44: Tolerie | E44: LP | F44: 49 | G44: MET-00005 | H44: OUI | I44: - | J44: AE3 | K44: En attente retour FRN | L44: J | M44: EN 9100 (FR)
A45: =SUM(A42:A44) -> 3 | B45: composant | C45: Tolerie | D45: Mini | E45: LP | F45: 49 | R45: =MIN(R42:R42) -> 7 | S45: 0 | T45: 0 | U45: 98 | V45: 0 | W45: =U45 -> 98
A46: 1 | B46: composant | C46: Tolerie | E46: E24 | F46: 1 | G46: MET-00010 L1 | H46: OUI | I46: 0021732/0 | J46: AZ1 | K46: Terminer | L46: N | M46: ISO 9001 (FR) | N46: 21 | P46: 85 | R46: 32 | S46: 20 | T46: 15 | U46: =R46*F46 -> 32 | V46: =S46*F46 -> 20 | W46: =T46*F46 -> 15 | X46: 100 | Y46: 1000 | Z46: 0 | AA46: =Z46/X46 -> 0 | AB46: =AA46/$AC$100 -> 0 | AC46: 32 | AD46: 20 | AE46: =SUM(W46)+(SUM(Z46)/_xlfn.SINGLE(Y46)) -> 15 | AF46: =AC46/$AC$93 -> 0.02475536669 | AG46: =AD46/$AE$93 -> 0.02332741012
A47: 1 | B47: composant | C47: Tolerie | E47: E24 | F47: 1 | G47: MET-00010 L1 | H47: OUI | I47: 0021732/0 | J47: AZ2 | K47: En attente retour FRN | L47: R | M47: ISO 9001 (FR) | N47: 45 | O47: 1 | R47: 15 | S47: 12 | T47: 11.5 | U47: =R47*F47 -> 15 | V47: =S47*F47 -> 12 | W47: =T47*F47 -> 11.5 | X47: 100 | Y47: 1000 | Z47: 50 | AA47: =Z47/X47 -> 0.5 | AB47: =AA47/$AC$100 -> 0.0005831852529 | AC47: 15.5 | AD47: 12.1 | AE47: =SUM(W47)+(SUM(Z47)/_xlfn.SINGLE(Y47)) -> 11.55 | AF47: =AC47/$AC$93 -> 0.01199088074 | AG47: =AD47/$AE$93 -> 0.01411308312
A48: 1 | B48: composant | C48: Tolerie | E48: E24 | F48: 1 | G48: MET-00010 L1 | H48: OUI | I48: - | J48: AZ3 | K48: Terminer | L48: B | M48: EN 9100 (FR) | O48: 1 | P48: 0 | Q48: 300 | R48: 8.5 | S48: 4.35 | T48: 3.8 | U48: =R48*F48 -> 8.5 | V48: =S48*F48 -> 4.35 | W48: =T48*F48 -> 3.8 | X48: 100 | Y48: 1000 | Z48: 0 | AA48: =Z48/X48 -> 0 | AB48: =AA48/$AC$100 -> 0 | AC48: 8.5 | AD48: 4.35 | AE48: =SUM(W48)+(SUM(Z48)/_xlfn.SINGLE(Y48)) -> 3.8 | AF48: =AC48/$AC$93 -> 0.006575644278 | AG48: =AD48/$AE$93 -> 0.0050737117
A49: =SUM(A46:A48) -> 3 | B49: composant | C49: Tolerie | D49: Mini | E49: E24 | F49: 1 | R49: =MIN(R48:R48) -> 8.5 | S49: 4.35 | T49: 3.8 | U49: 8.5 | V49: 4.35 | W49: 3.8 | AC49: =MIN(AC46:AC48) -> 8.5 | AD49: =MIN(AD46:AD48) -> 4.35 | AE49: =MIN(AE46:AE48) -> 3.8 | AF49: =MIN(AF46:AF48) -> 0.006575644278 | AG49: =MIN(AG46:AG48) -> 0.0050737117
B50: composant | C50: Visserie | D50: Mini | E50: Rivet FRAISE 3.2x8-ETANCHE | F50: 22 | G50: - | K50: A Faire | N50: 0 | O50: 0 | R50: 0.1 | U50: =R50*F50 -> 2.2 | W50: =U50 -> 2.2
B51: composant | C51: Visserie | D51: Mini | E51: Rivet 3.2x8 | F51: 14 | G51: - | K51: A Faire | N51: 0 | O51: 0 | R51: 0.1 | U51: 1.4 | W51: 1.4
B52: composant | C52: Visserie | D52: Mini | E52: vis F HC M 4 X 20 | F52: 4 | G52: - | H52: - | I52: Consultation internet | J52: Consultation internet | K52: Terminer | L52: S | M52: ISO 9001 (FR) | N52: 3 | O52: 1 | R52: 0.314 | S52: 0.282 | T52: 0.282 | U52: 1.256 | V52: =S52*F52 -> 1.128 | W52: =T52*F52 -> 1.128 | X52: 100 | Y52: 1000 | Z52: 0 | AA52: =Z52/X52 -> 0 | AB52: =AA52/$AC$100 -> 0 | AC52: =U52+(Z52/X52) -> 1.256 | AD52: =V52+(Z52/500) -> 1.128 | AE52: =SUM(W52)+(SUM(Z52)/_xlfn.SINGLE(Y52)) -> 1.128 | AF52: =AC52/$AC$93 -> 0.0009716481427 | AG52: =AD52/$AE$93 -> 0.00131566593
B53: composant | C53: Visserie | D53: Mini | E53: vis F HC M 4 X 12 | F53: 12 | G53: - | H53: - | I53: Consultation internet | J53: Consultation internet | K53: Terminer | L53: S | M53: ISO 9001 (FR) | N53: 3 | O53: 1 | R53: 0.143 | S53: 0.129 | T53: 0.129 | U53: 1.716 | V53: 1.548 | W53: 1.548 | X53: 100 | Y53: 1000 | Z53: 0 | AA53: 0 | AB53: 0 | AC53: =U53+(Z53/X53) -> 1.716 | AD53: =V53+(Z53/500) -> 1.548 | AE53: 1.548 | AF53: 0.001327506539 | AG53: 0.001805541543
B54: composant | C54: Visserie | D54: Mini | E54: vis HM 4 X 8 | F54: 2 | G54: - | H54: - | I54: Consultation internet | J54: Consultation internet | K54: Terminer | L54: S | M54: ISO 9001 (FR) | N54: 3 | O54: 1 | R54: 0.111 | S54: 0.1 | T54: 0.1 | U54: 0.222 | V54: 0.2 | W54: 0.2 | X54: 100 | Y54: 1000 | Z54: 0 | AA54: 0 | AB54: 0 | AC54: =U54+(Z54/X54) -> 0.222 | AD54: =V54+(Z54/500) -> 0.2 | AE54: 0.2 | AF54: 0.0001717403564 | AG54: 0.0002332741012
B55: composant | C55: Visserie | D55: Mini | E55: vis CHc M 4 X 20 | F55: 24 | G55: - | H55: - | I55: Consultation internet | J55: Consultation internet | K55: Terminer | L55: S | M55: ISO 9001 (FR) | N55: 3 | O55: 1 | R55: 0.361 | S55: 0.342 | T55: 0.342 | U55: 8.664 | V55: 8.208 | W55: 8.208 | X55: 100 | Y55: 1000 | Z55: 0 | AA55: 0 | AB55: 0 | AC55: =U55+(Z55/X55) -> 8.664 | AD55: =V55+(Z55/500) -> 8.208 | AE55: 8.208 | AF55: 0.006702515532 | AG55: 0.009573569111
B56: composant | C56: Visserie | D56: Mini | E56: vis CHc M 3 x 10 | F56: 8 | G56: - | H56: - | I56: Consultation internet | J56: Consultation internet | K56: Terminer | L56: S | M56: ISO 9001 (FR) | N56: 3 | O56: 1 | R56: 0.321 | S56: 0.289 | T56: 0.289 | U56: 2.568 | V56: 2.312 | W56: 2.312 | X56: 100 | Y56: 1000 | Z56: 0 | AA56: 0 | AB56: 0 | AC56: =U56+(Z56/X56) -> 2.568 | AD56: =V56+(Z56/500) -> 2.312 | AE56: 2.312 | AF56: 0.001986618177 | AG56: 0.002696648609
B57: composant | C57: Visserie | D57: Mini | E57: vis CHc M 3 x 25 | F57: 4 | G57: - | H57: - | I57: Consultation internet | J57: Consultation internet | K57: Terminer | L57: S | M57: ISO 9001 (FR) | N57: 3 | O57: 1 | R57: 0.13 | S57: 0.117 | T57: 0.117 | U57: 0.52 | V57: 0.468 | W57: 0.468 | X57: 100 | Y57: 1000 | Z57: 0 | AA57: 0 | AB57: 0 | AC57: =U57+(Z57/X57) -> 0.52 | AD57: =V57+(Z57/500) -> 0.468 | AE57: 0.468 | AF57: 0.0004022747088 | AG57: 0.0005458613967
B58: composant | C58: Visserie | D58: Mini | E58: ECROU M4 | F58: 2 | G58: - | K58: A Faire | N58: 0 | O58: 0 | R58: 0.1 | S58: 0 | T58: 0 | U58: 0.2 | V58: 0 | W58: 0 | X58: 100 | Y58: 1000 | Z58: 0 | AD58: -
B59: composant | C59: Visserie | D59: Mini | E59: vis F HC M 3 X 8 | F59: 2 | G59: - | H59: - | I59: Consultation internet | J59: Consultation internet | K59: Terminer | L59: S | M59: ISO 9001 (FR) | N59: 3 | O59: 1 | R59: 0.131 | S59: 0.118 | T59: 0.118 | U59: 0.262 | V59: 0.236 | W59: 0.236 | X59: 100 | Y59: 1000 | Z59: 0 | AA59: 0 | AB59: =AA59/$AC$100 -> 0 | AC59: =U59+(Z59/X59) -> 0.262 | AD59: 0.236 | AE59: =SUM(W59)+(SUM(Z59)/_xlfn.SINGLE(Y59)) -> 0.236 | AF59: =AC59/$AC$93 -> 0.0002026845648 | AG59: =AD59/$AE$93 -> 0.0002752634394
B60: composant | C60: Visserie | D60: Mini | E60: vis CHc M 3 x 5 | F60: 4 | G60: - | K60: A Faire | N60: 0 | O60: 0 | R60: 0.1 | U60: 0.4 | W60: =U60 -> 0.4 | X60: 100
B61: composant | C61: Visserie | D61: Mini | E61: ECROU H M3 | F61: 10 | G61: - | K61: A Faire | N61: 0 | O61: 0 | R61: 0.1 | U61: 1 | W61: 1 | X61: 100
B62: composant | C62: Visserie | D62: Mini | E62: ECROU BAS HM M10 | F62: 2 | G62: - | K62: A Faire | N62: 0 | O62: 0 | R62: 0.1 | U62: 0.2 | W62: 0.2 | X62: 100
B63: composant | C63: Visserie | D63: Mini | E63: vis F HC M 3 X 16 | F63: 4 | G63: - | H63: - | I63: Consultation internet | J63: Consultation internet | K63: Terminer | L63: S | M63: ISO 9001 (FR) | N63: 3 | O63: 1 | R63: 0.347 | S63: 0.312 | T63: 0.312 | U63: 1.388 | V63: =S63*F63 -> 1.248 | W63: =T63*F63 -> 1.248 | X63: 100 | Y63: 1000 | Z63: 0 | AA63: =Z63/X63 -> 0 | AB63: =AA63/$AC$100 -> 0 | AC63: =U63+(Z63/X63) -> 1.388 | AD63: 1.248 | AE63: =SUM(W63)+(SUM(Z63)/_xlfn.SINGLE(Y63)) -> 1.248 | AF63: =AC63/$AC$93 -> 0.00107376403 | AG63: =AD63/$AE$93 -> 0.001455630391
B64: composant | C64: Visserie | D64: Mini | E64: Ecrou m12 plastique | F64: 2 | G64: - | K64: A Faire | N64: 0 | O64: 0 | R64: 0.1 | U64: 0.2 | W64: =U64 -> 0.2 | X64: 100
B65: composant | C65: Plastique | D65: Mini | E65: ENTRETOISE F-F | F65: 12 | G65: M4-50 | K65: A Faire | L65: H | O65: 0 | R65: 1 | U65: 12 | W65: 12 | X65: 100
B66: composant | C66: Visserie | D66: Mini | E66: vis m5x10 | F66: 2 | G66: - | H66: - | I66: Consultation internet | J66: Consultation internet | K66: Terminer | L66: S | M66: ISO 9001 (FR) | N66: 3 | O66: 1 | R66: 0.299 | S66: 0.269 | T66: 0.269 | U66: 0.598 | V66: =S66*F66 -> 0.538 | W66: =T66*F66 -> 0.538 | X66: 100 | Y66: 1000 | Z66: 0 | AA66: 0 | AB66: =AA66/$AC$100 -> 0 | AC66: =U66+(Z66/X66) -> 0.598 | AD66: 0.538 | AE66: =SUM(W66)+(SUM(Z66)/_xlfn.SINGLE(Y66)) -> 0.538 | AF66: =AC66/$AC$93 -> 0.0004626159151 | AG66: =AD66/$AE$93 -> 0.0006275073321
B67: composant | C67: Electronique | E67: CM | F67: 1 | G67: B10 | H67: ok | I67: - | J67: - | K67: En attente retour FRN | L67: A | M67: ISO 9001 (FR) | N67: 45 | O67: 1 | T67: 15.82 | W67: =T67*F67 -> 15.82 | Y67: 1000 | Z67: 50 | AA67: =Z67/Y67 -> 0.05 | AB67: =AA67/$AC$100 -> 5.831852529e-05 | AE67: =SUM(W67)+(SUM(Z67)/_xlfn.SINGLE(Y67)) -> 15.87 | AG67: =AE67/$AE$93 -> 0.01851029993
B68: composant | C68: Electronique | E68: CM | F68: 1 | G68: B11 | H68: ok | I68: - | J68: - | K68: En attente retour FRN | L68: S | M68: ISO 9001 (FR) | N68: 45
B69: composant | C69: Electronique | E69: CM | F69: 1 | G69: B12 | H69: ok | I69: - | J69: - | K69: En attente retour FRN | L69: D | M69: ISO 9001 (FR) | N69: 45
B70: composant | C70: Electronique | D70: Mini | E70: CM | F70: 1 | G70: B13 | H70: ok | I70: - | K70: Terminer | L70: F | M70: - | N70: 45 | O70: 1 | R70: 18.98 | S70: 17.95 | T70: 17.28 | U70: =R70*F70 -> 18.98 | V70: =S70*F70 -> 17.95 | W70: =T70*F70 -> 17.28 | X70: 100 | Y70: 1000 | Z70: 25 | AA70: =Z70/X70 -> 0.25 | AB70: =AA70/$AC$100 -> 0.0002915926264 | AC70: =U70+(Z70/X70) -> 19.23 | AD70: =V70+(Z70/500) -> 18 | AE70: =SUM(W70)+(SUM(Z70)/_xlfn.SINGLE(Y70)) -> 17.305 | AF70: =AC70/$AC$93 -> 0.01487642817 | AG70: =AD70/$AE$93 -> 0.0209946691
B71: composant | C71: Electronique | E71: CM | F71: 1 | G71: B14 | H71: ok | I71: - | K71: Terminer | L71: F | M71: - | N71: 45 | O71: 1 | R71: 21.75 | S71: 20.93 | T71: 20.93 | U71: =R71*F71 -> 21.75 | V71: =S71*F71 -> 20.93 | W71: =T71*F71 -> 20.93 | X71: 100 | Y71: 1000 | Z71: 25 | AA71: 0.25 | AB71: =AA71/$AC$100 -> 0.0002915926264 | AC71: =U71+(Z71/X71) -> 22 | AD71: 20.98 | AE71: =SUM(W71)+(SUM(Z71)/_xlfn.SINGLE(Y71)) -> 20.955 | AF71: =AC71/$AC$93 -> 0.0170193146 | AG71: =AD71/$AE$93 -> 0.02447045321
A72: 1 | B72: composant | C72: Electronique | D72: Mini | E72: CM | F72: 1 | R72: =MIN(R67:R71) -> 18.98 | S72: =MIN(S67:S71) -> 17.95 | T72: 15.82 | U72: 18.98 | V72: 17.95 | W72: 15.82 | AC72: =MIN(AC67:AC71) -> 19.23 | AD72: =MIN(AD67:AD71) -> 18 | AE72: 15.87 | AF72: =MIN(AF69:AF71) -> 0.01487642817 | AG72: =MIN(AG69:AG71) -> 0.0209946691
B73: composant | C73: Electronique | D73: Mini | E73: A11 | F73: 2 | G73: A2 | K73: A Faire | N73: 0 | O73: 0 | R73: 40 | U73: =R73*F73 -> 80 | W73: =U73 -> 80 | X73: 100
B74: S-Ensemble | C74: Electronique | D74: Mini | E74: A12 | F74: 1 | G74: A3 | K74: A Faire | L74: U | N74: 0 | O74: 0 | R74: 40 | U74: 40 | W74: 40 | X74: 100
B75: S-Ensemble | C75: Electronique | D75: Mini | E75: A13 | F75: 1 | G75: A4 | K75: A Faire | L75: U | N75: 0 | O75: 0 | R75: 40 | U75: 40 | W75: 40 | X75: 100
B76: composant | C76: Electronique | D76: Mini | E76: A14 | F76: 0 | G76: A5 | K76: A Faire | N76: 0 | O76: 0 | R76: 1 | U76: 0 | X76: 100
B77: composant | C77: Electronique | D77: Mini | E77: A15 | F77: 1 | G77: A6 | K77: A Faire | N77: 0 | O77: 0 | R77: 1 | U77: 1 | W77: =U77 -> 1 | X77: 100
B78: composant | C78: Electronique | D78: Mini | E78: A16 | F78: 0 | G78: A7 | H78: - | K78: Terminer | L78: I | M78: ISO 9001 (CN) | N78: 30 | O78: 1 | P78: =16.75+35.41 -> 52.16 | R78: 18.46 | S78: 15.27 | T78: 14.73 | U78: 0 | V78: =S78*F78 -> 0 | W78: =T78*F78 -> 0 | X78: 100 | Y78: 1000 | Z78: 224.5 | AA78: =Z78/X78 -> 2.245 | AB78: =AA78/$AC$100 -> 0.002618501785 | AC78: =SUM(U78)+(SUM(Z78)/X78) -> 2.245 | AD78: 0.449 | AE78: =SUM(W78)+(SUM(Z78)/_xlfn.SINGLE(Y78)) -> 0.2245 | AF78: =AC78/$AC$93 -> 0.001736743695 | AG78: =AD78/$AE$93 -> 0.0005237003571
B79: composant | C79: Electronique | D79: Mini | E79: A17 | F79: 1 | G79: A8 | K79: Terminer | L79: C | N79: 55 | O79: 1 | Q79: =1162+420+290+1470 -> 3342 | R79: 141.5 | S79: 141.5 | T79: 138.3 | U79: 141.5 | V79: =S79*F79 -> 141.5 | W79: =T79*F79 -> 138.3 | X79: 100 | Y79: 1000 | Z79: 50 | AA79: 0.5 | AB79: =AA79/$AC$100 -> 0.0005831852529 | AC79: =SUM(U79)+(SUM(Z79)/X79) -> 142 | AD79: 141.6 | AE79: =SUM(W79)+(SUM(Z79)/_xlfn.SINGLE(Y79)) -> 138.35 | AF79: =AC79/$AC$93 -> 0.1098519397 | AG79: =AD79/$AE$93 -> 0.1651580636
B80: composant | C80: Electronique | D80: Mini | E80: A18 | F80: 1 | G80: A9 | K80: Terminer | L80: C | N80: 55 | O80: 1 | Q80: =585+420+290+930 -> 2225 | R80: 230.55 | S80: 230.55 | T80: 222.9 | U80: 230.55 | V80: =S80*F80 -> 230.55 | W80: =T80*F80 -> 222.9 | X80: 100 | Y80: 1000 | Z80: 50 | AA80: 0.5 | AB80: =AA80/$AC$100 -> 0.0005831852529 | AC80: =SUM(U80)+(SUM(Z80)/X80) -> 231.05 | AD80: 230.65 | AE80: =SUM(W80)+(SUM(Z80)/_xlfn.SINGLE(Y80)) -> 222.95 | AF80: =AC80/$AC$93 -> 0.1787414836 | AG80: =AD80/$AE$93 -> 0.2690233572
B81: composant | C81: Electronique | D81: Mini | E81: A19 | F81: 1 | G81: A10 | K81: A Faire | N81: 0 | O81: 0 | R81: 100 | T81: 222.9 | U81: 100 | W81: =U81 -> 100 | X81: 100
B82: composant | C82: Electronique | D82: Mini | E82: A20 | F82: 1 | G82: A11 | K82: A Faire | O82: 1 | R82: 100 | U82: 100 | W82: 100 | X82: 100
B83: composant | C83: Electronique | D83: Mini | E83: A21 | F83: 1 | G83: A12A | K83: A Faire | L83: O | O83: 1 | R83: 50 | U83: 50 | W83: 50 | X83: 100
B84: composant | C84: Electronique | D84: Mini | E84: A22 | F84: 2 | G84: A13 | K84: A Faire | N84: 0 | O84: 0 | R84: 1 | U84: 2 | W84: 2 | X84: 100
A85: 1 | B85: composant | C85: Accumulateur | E85: ACCP | F85: 56 | G85: 26A650 | H85: - | I85: - | K85: Terminer | L85: Z | M85: ISO 9001 (DE) | N85: 15 | R85: 5 | S85: 4.93 | T85: 3.85 | U85: 280 | V85: =S85*F85 -> 276.08 | W85: =T85*F85 -> 215.6 | X85: 100 | Y85: 1000 | Z85: 30 | AA85: =Z85/X85 -> 0.3 | AB85: =AA85/$AC$100 -> 0.0003499111517 | AC85: =U85+(Z85/X85) -> 280.3 | AD85: =V85+(Z85/500) -> 276.14 | AE85: =SUM(W85)+(SUM(Z85)/_xlfn.SINGLE(Y85)) -> 215.63 | AF85: =AC85/$AC$93 -> 0.2168415401 | AG85: =AD85/$AE$93 -> 0.3220815515
A86: 1 | B86: composant | C86: Accumulateur | E86: ACCP | F86: 56 | G86: 26A650 | H86: - | I86: - | K86: Terminer | L86: Q | M86: ISO 9001 (CN) | N86: 15 | R86: 3.05 | U86: 170.8 | X86: 100 | Y86: 1000 | Z86: 710 | AA86: =Z86/X86 -> 7.1 | AB86: =AA86/$AC$100 -> 0.008281230591 | AC86: =U86+(Z86/X86) -> 177.9 | AD86: 1.42 | AE86: =SUM(U86)+(SUM(Z86)/_xlfn.SINGLE(Y86)) -> 171.51 | AF86: 0.1376243667 | AG86: 0.001656246118
A87: 1 | B87: composant | C87: Accumulateur | E87: ACCP | F87: 56 | G87: 26A650 | H87: - | I87: - | K87: Terminer | L87: E | M87: ISO 9001 (CN) | N87: 35 | O87: 1 | R87: 2.8 | S87: 2.6 | T87: 2.1 | U87: 156.8 | V87: =S87*F87 -> 145.6 | W87: =T87*F87 -> 117.6 | X87: 100 | Y87: 1000 | Z87: 300 | AA87: =Z87/X87 -> 3 | AB87: =AA87/$AC$100 -> 0.003499111517 | AC87: =U87+(Z87/X87) -> 159.8 | AD87: 146.2 | AE87: =SUM(W87)+(SUM(Z87)/_xlfn.SINGLE(Y87)) -> 117.9 | AF87: =AC87/$AC$93 -> 0.1236221124 | AG87: 0.1705233679
A88: =SUM(A85:A87) -> 3 | B88: composant | C88: Accumulateur | D88: Mini | E88: ACCP | F88: 56 | R88: =MIN(R86:R87) -> 2.8 | S88: =MIN(S86:S87) -> 2.6 | T88: 2.1 | U88: =MIN(U85:U87) -> 156.8 | V88: =MIN(V85:V87) -> 145.6 | W88: =MIN(W85:W87) -> 117.6 | AC88: =MIN(AC85:AC87) -> 159.8 | AD88: =MIN(AD85:AD87) -> 1.42 | AE88: 117.9 | AF88: =MIN(AF85:AF87) -> 0.1236221124 | AG88: =MIN(AG85:AG87) -> 0.001656246118
A89: 1 | B89: composant | C89: Emballage | E89: EMBALAGE 1 | F89: 1 | G89: C1 | H89: - | I89: - | K89: Terminer | L89: G | M89: ISO 9001 (FR) | N89: 4 | O89: 1 | R89: 5.6 | S89: 4.5 | T89: 3.5 | U89: =R89*F89 -> 5.6 | V89: =S89*F89 -> 4.5 | W89: =T89*F89 -> 3.5 | X89: 100 | Y89: 1000 | Z89: 50 | AA89: =Z89/X89 -> 0.5 | AB89: =AA89/$AC$100 -> 0.0005831852529 | AC89: =U89+(Z89/X89) -> 6.1 | AD89: 4.6 | AE89: =SUM(W89)+(SUM(Z89)/_xlfn.SINGLE(Y89)) -> 3.55 | AF89: =AC89/$AC$93 -> 0.004718991776 | AG89: =AD89/$AE$93 -> 0.005365304326
A90: 1 | B90: composant | C90: Emballage | E90: Emballage | F90: 1 | G90: C2 | K90: Negociation | L90: P | M90: ISO 9001 (FR) | N90: 4 | R90: 22 | U90: =R90*F90 -> 22 | X90: 100 | Y90: 1000 | Z90: 55 | AA90: =Z90/X90 -> 0.55 | AB90: =AA90/$AC$100 -> 0.0006415037782 | AC90: =U90+(Z90/X90) -> 22.55 | AF90: =AC90/$AC$93 -> 0.01744479747
A91: =SUM(A89:A90) -> 2 | B91: composant | C91: Emballage | D91: Mini | E91: Emballage | F91: 1 | R91: =MIN(R89:R90) -> 5.6 | S91: =MIN(S89:S90) -> 4.5 | T91: 3.5 | U91: =MIN(U89:U90) -> 5.6 | V91: =MIN(V89:V90) -> 4.5 | W91: 3.5 | AC91: =MIN(AC89:AC90) -> 6.1 | AD91: =MIN(AD89:AD90) -> 4.6 | AE91: 3.55 | AF91: =MIN(AF89:AF90) -> 0.004718991776 | AG91: =MIN(AG89:AG90) -> 0.005365304326
F92: =SUM(F2:F91) -> 817
R93: =SUM(R4+R7+R11+R13+R18+R24+R33+R35+R37+R49+SUM(R50:R66)+SUM(R67:R84)+R88+R91) -> 1242.177 | AC93: =SUM(AC4+AC7+AC11+AC13+AC18+AC24+AC33+AC35+AC37+AC49+SUM(AC50:AC66)+SUM(AC67:AC84)+AC88+AC91) -> 1292.649 | AD93: =SUM(AD4+AD7+AD11+AD13+AD18+AD24+AD33+AD35+AD37+AD49+SUM(AD50:AD66)+SUM(AD67:AD84)+AD88+AD91) -> 779.835 | AE93: =SUM(AE4+AE7+AE11+AE13+AE18+AE24+AE33+AE35+AE37+AE49+SUM(AE50:AE66)+SUM(AE67:AE84)+AE88+AE91) -> 857.3605 | AF93: =SUM(AF4,AF7,AF11,AF13,AF18,AF24,AF33,AF35,AF37,AF49,AF50:AF66,AF67:AF84,AF88,AF91) -> 1 | AG93: =SUM(AG4,AG7,AG11,AG13,AG18,AG24,AG33,AG35,AG37,AG49,AG50:AG66,AG67:AG84,AG88,AG91) -> 0.9280868433
J97: objectif | K97: 1160 | AA97: Coût unitaire pour 100 produits finis : | AC97: =AC93 -> 1292.649
AD98: ECONOMIES D'ECHELLE :
AD99: =AC100-AC97 -> -435.2885
AA100: Coût unitaire pour 1000 produiyts foinis : | AC100: =AE93 -> 857.3605
AB102: Immo financière totale : (prends en compte les composants déjà achetés) | AC102: =R93 -> 1242.177
